Cogmind - Beta 9.2 @@@ ROGUE MODE // 2019.12.11 @ 14:30:40 Player: sweetandcool Result: Destroyed by as-39932 with Assembled Blade Performance ------------- Evolutions (0) 0 Regions Visited (2) 400 Robots Destroyed (25) 125 Value Destroyed (373) 373 Prototype IDs (2) 40 Alien Tech Used (0) 0 Bonus (0) 0 TOTAL SCORE: 938 Bonus ------- None Cogmind --------- Core Integrity 0/250 Matter 293/300 Energy 125/125 System Corruption 1% Temperature Cool (100) Movement Walking (150) Ox1 Location -10/Mines Parts ------- > --- POWER (1) -------- Light Ion Engine > --- PROPULSION (2) --- Aluminum Leg Aluminum Leg > --- UTILITY (2) ------ Large Storage Unit Large Storage Unit > --- WEAPON (2) ------- Small Laser Light Assault Rifle > --- INVENTORY (16) --- Light Ion Engine Light Ion Engine Hover Unit Small Storage Unit Large Storage Unit Large Storage Unit Weight Redist. System Propulsion Shielding Propulsion Shielding Propulsion Shielding Small Laser Peak State ------------ > --- POWER ------------ Ion Engine > --- PROPULSION ------- Light Treads Light Treads > --- UTILITY ---------- Small Storage Unit Improved Terrain Scanner > --- WEAPON ----------- Medium Laser Small Laser > --- INVENTORY -------- Light Ion Engine Aluminum Leg Aluminum Leg Light Assault Rifle [Rating: 8] Favorites ----------- Power Light Ion Engine Engine Light Ion Engine Propulsion Light Treads Treads Light Treads Leg Aluminum Leg Utility Large Storage Unit Device Improved Terrain Scanner Storage Large Storage Unit Weapon Light Assault Rifle Energy Gun Small Laser Ballistic Gun Light Assault Rifle Build | -11 -10 -10 ------- Run | Scr Mat Min Slots Evolved . | . . . Power . | . . . Propulsion . | . . . Utility . | . . . Weapon . | . . . Parts Attached 25 | 7 18 . Power 5 | 1 4 . Engine 5 | 1 4 . Core . | . . . Reactor . | . . . Propulsion 6 | 2 4 . Treads 4 | 2 2 . Leg 2 | . 2 . Wheel . | . . . Hover . | . . . Flight . | . . . Utility 5 | 2 3 . Device 1 | 1 . . Storage 4 | 1 3 . Processor . | . . . Hackware . | . . . Protection . | . . . Artifact . | . . . Weapon 9 | 2 7 . Energy Gun 5 | 2 3 . Energy Cannon . | . . . Ballistic Gun 4 | . 4 . Ballistic Cannon . | . . . Launcher . | . . . Special Weapon . | . . . Impact Weapon . | . . . Slashing Weapon . | . . . Piercing Weapon . | . . . Special Melee Weapon . | . . . Unidentified Prototypes . | . . . Parts Lost 10 | . 10 . Power 1 | . 1 . Propulsion 3 | . 3 . Utility . | . . . Weapon 6 | . 6 . Highest Loss Streak 3 | . 3 . Average Slot Usage (%) 88 | . 87 100 Engine 13 | . 13 14 Treads 19 | . 21 . Leg 4 | . 1 28 Storage 27 | . 26 28 Energy Gun 10 | . 9 14 Ballistic Gun 11 | . 10 14 Naked Turns . | . . . Heaviest Build 37 | 13 37 37 Greatest Support 40 | 40 40 20 Greatest Overweight (x) 3 | 3 1 1 Average Overweight (x) . | . . 1 Largest Inventory Capacity 16 | 6 16 16 Average Capacity 11 | 5 11 16 Most Carried 12 | 5 12 11 Average Carried 7 | 2 7 11 Final Capacity 16 | 6 16 16 Final Carried 11 | 5 11 11 Class Distribution -------------------- 87% | Mutant 12% | Scavenger-Mutant Dominant Class ---------------- Mutant | -10/Materials Mutant | -10/Mines Resources | -11 -10 -10 ----------- Run | Scr Mat Min Matter Collected 510 | 254 256 . Remotely . | . . . Salvage Created 691 | 71 608 12 Parts 48 | 6 42 . Haulers Intercepted 1 | . 1 . Recyclers Shooed 4 | 1 3 . Parts Field Recycled . | . . . Retrieved Matter . | . . . Parts Self-Destructed . | . . . Prevented . | . . . Kills | -11 -10 -10 ------- Run | Scr Mat Min Combat Hostiles Destroyed 17 | . 16 1 Melee 2 | . 2 . Guns 15 | . 14 1 Classes Destroyed 8 | 2 5 1 Worker 2 | . 2 . Tunneler 1 | 1 . . Hauler 1 | . 1 . Recycler 3 | 1 2 . Watcher 1 | . 1 . Swarmer 9 | . 9 . Grunt 7 | . 7 . Assembled 1 | . . 1 Best Kill Streak 3 | 2 3 1 Combat Bots Only 3 | . 3 1 Max Kills in Single Turn 2 | 1 2 1 Gunslinging 1 | . 1 . Exploded . | . . . Melee 1 | . 1 . Uniques/NPCs Destroyed . | . . . Combat | -11 -10 -10 -------- Run | Scr Mat Min Damage Taken 1373 | . 1176 197 Core 254 | . 187 67 Absorbed by Shields . | . . . Core Remaining (%) 100 | 100 . . Volleys Fired 113 | 3 103 7 Largest 2 | 2 2 2 Hottest 90 | 90 90 60 Shots Fired 174 | 6 154 14 Gun 174 | 6 154 14 Cannon . | . . . Launcher . | . . . Special . | . . . Kinetic 101 | . 94 7 Thermal 73 | 6 60 7 Explosive . | . . . Electromagnetic . | . . . Robot Hit Streak 15 | 5 15 2 Robot Miss Streak 3 | 1 2 3 Penetration Max . | . . . Secondary Targets 2 | . 1 1 Max Gunslinging Chain 1 | . 1 1 Shots Hit Robots 117 | 5 106 6 Core Hits 52 | 3 45 4 Critical Hits 1 | . 1 . Critical Kills . | . . . Critical Parts Destroyed 1 | . 1 . Melee Attacks . | . . . Impact . | . . . Slashing . | . . . Piercing . | . . . Sneak Attacks . | . . . Combat Hostiles . | . . . Follow-up Attacks . | . . . Damage Inflicted 1200 | 56 1079 65 Guns 1163 | 56 1042 65 Cannons . | . . . Explosions . | . . . Melee . | . . . Ramming 37 | . 37 . Kinetic 527 | . 517 10 Thermal 636 | 56 525 55 Explosive . | . . . Electromagnetic . | . . . Impact . | . . . Slashing . | . . . Piercing . | . . . Highest Corruption 1 | . 1 1 Average Corruption 1 | . 1 1 Corruption Purged . | . . . Effects 6 | . 5 1 Message Errors 1 | . 1 . Energy Discharges 3 | . 2 1 Data Loss (minor) 2 | . 2 . Overload Shots . | . . . Overflow Damage . | . . . Projectiles . | . . . Explosions . | . . . Melee . | . . . Knockbacks . | . . . Impact . | . . . Kinetic . | . . . Secondary . | . . . Self-Inflicted Damage . | . . . Shots . | . . . Rammed 14 | . 14 . Targets Rammed 15 | . 15 . Kicked . | . . . Crushed 1 | . 1 . Highest Temperature 137 | 90 137 120 Average Temperature 42 | 47 40 55 Received Heat Transfer 494 | . 414 80 Siege Activations . | . . . Robots Corrupted . | . . . Combat Hostiles . | . . . Parts Fried . | . . . Impact Corruptions . | . . . Robots Melted . | . . . Combat Hostiles . | . . . Parts Melted 6 | . 6 . Heat Transferred 1592 | 149 1318 125 Parts Sabotaged . | . . . Parts Stolen . | . . . Parts Stripped . | . . . Power Chain Reactions . | . . . Missiles Intercepted . | . . . Alert | -11 -10 -10 ------- Run | Scr Mat Min Peak Influence 151 | 10 151 4 Average Influence 65 | 6 77 4 Maximum Alert Level . | . . . Low Security (%) 100 | 100 100 100 Level 1 . | . . . Level 2 . | . . . Level 3 . | . . . Level 4 . | . . . Level 5 . | . . . High Security . | . . . Max Security . | . . . Squads Dispatched 4 | . 4 . Investigation 1 | . 1 . Extermination . | . . . Reinforcement 3 | . 3 . Assault . | . . . Garrison . | . . . Intercept . | . . . Construction Impeded . | . . . Haulers Reinforced . | . . . Stealth | -11 -10 -10 --------- Run | Scr Mat Min Distress Signals 2 | . 2 . Communications Jammed . | . . . Distress Signals . | . . . Times Spotted 39 | . 30 9 Peak Tracking Total 9 | . 6 9 Tactical Retreats . | . . . Traps | -11 -10 -10 ------- Run | Scr Mat Min Traps Triggered 4 | . 4 . Indirectly . | . . . Trap Hack Attempts . | . . . Triggered . | . . . Disarmed . | . . . Reprogrammed . | . . . Reused . | . . . Traps Extracted . | . . . Installed . | . . . Triggered . | . . . Machines | -11 -10 -10 ---------- Run | Scr Mat Min Machines Disabled . | . . . Max in Single Turn . | . . . Machines Sabotaged . | . . . Garrisons Compromised . | . . . Overloaded Fab Kills . | . . . Fab Network Shutdowns . | . . . Hacking | -11 -10 -10 --------- Run | Scr Mat Min Machines Accessed 5 | . 5 . Terminals 5 | . 5 . Fabricators . | . . . Repair Stations . | . . . Recycling Units . | . . . Scanalyzers . | . . . Garrison Access . | . . . Total Hacks 20 | . 20 . Successful 11 | . 11 . Failed 9 | . 9 . Catastrophic 1 | . 1 . Database Lockouts . | . . . Manual . | . . . Terminals 20 | . 20 . Fabricators . | . . . Repair Stations . | . . . Recycling Units . | . . . Scanalyzers . | . . . Garrison Access . | . . . Terminal Hacks 11 | . 11 . Record 1 | . 1 . Robot Analysis 1 | . 1 . Prototype ID Bank 1 | . 1 . Level Access Points 1 | . 1 . Terminal Index 1 | . 1 . Alert Level 2 | . 2 . Locate Traps 1 | . 1 . Hauler Manifests 1 | . 1 . Registered Components 1 | . 1 . Zone Layout 1 | . 1 . Fabricator Hacks . | . . . Repair Station Hacks . | . . . Recycling Unit Hacks . | . . . Scanalyzer . | . . . Garrison Access Hacks . | . . . Unauthorized Hacks . | . . . Terminals . | . . . Fabricators . | . . . Repair Stations . | . . . Recycling Units . | . . . Scanalyzers . | . . . Garrison Access . | . . . Data Cores Recovered . | . . . Used . | . . . Hacking Detections 4 | . 4 . Full Trace Events 2 | . 2 . Feedback Events . | . . . Feedback Blocked . | . . . Robot Schematics Acquired . | . . . Robots Built . | . . . Matter . | . . . Time . | . . . Total Robot Build Rating . | . . . Part Schematics Acquired . | . . . Parts Built . | . . . Matter . | . . . Time . | . . . Total Part Build Rating . | . . . Parts Repaired . | . . . Time . | . . . Parts Recycled . | . . . Recycled Matter . | . . . Retrieved Matter . | . . . Retrieved Components . | . . . Parts Scanalyzed . | . . . Part Schematics Acquired . | . . . Parts Damaged . | . . . Bothacking | -11 -10 -10 ------------ Run | Scr Mat Min Used RIF Installer . | . . . Robots Hacked . | . . . Non-combat . | . . . Combat . | . . . Robot Hacks Applied . | . . . Relay Couplers Released . | . . . Robots Rewired . | . . . Allies Hacked . | . . . Hacks Repelled . | . . . Allies | -11 -10 -10 -------- Run | Scr Mat Min Total Allies . | . . . Largest Group . | . . . Highest-Rated Group . | . . . Highest-Rated Ally . | . . . Total Orders . | . . . Ally Attacks . | . . . Total Damage . | . . . Kills . | . . . Allies Corrupted . | . . . Allies Melted . | . . . Intel | -11 -10 -10 ------- Run | Scr Mat Min Robot Analysis Total 1 | . 1 . Derelict Logs Recovered . | . . . Drone Launches . | . . . Drone Recoveries . | . . . Exploration | -11 -10 -10 ------------- Run | Scr Mat Min Turns Passed 1475 | 81 1231 163 Spaces Moved 702 | 37 571 94 Core 4 | 4 . . Treads 554 | 33 521 . Legs 144 | . 50 94 Wheels . | . . . Hover . | . . . Flight . | . . . Fastest Speed 50 | 50 150 150 Average Speed 159 | 154 161 150 Slowest Speed 200 | 200 180 150 Overloaded Moves . | . . . Propulsion Burnouts . | . . . Robots Hopped . | . . . Cave-ins Triggered . | . . . Exploration Rate (%) 41 | 4 85 35 Regions Visited 2 Branch Regions 1 Pre-discovered Areas . | . . . Known Exits Taken . | . . . Unknown Exits Taken 2 | 1 1 . Scrap Searched . | . . . Spaces Dug . | . . . Terrain Destroyed . | . . . Melee . | . . . Projectile . | . . . AOE . | . . . Actions | -11 -10 -10 --------- Run | Scr Mat Min Total 883 | 52 728 103 Wait 8 | . 8 . Move 700 | 36 570 94 Hop . | . . . Pick Up 16 | 6 10 . Fast Attach 16 | 6 10 . Attach 5 | 1 4 . Detach . | . . . Swap 4 | . 4 . Drop 4 | . 4 . Fire 113 | 3 103 7 Melee . | . . . Ram . | . . . Kick . | . . . Crush 15 | . 15 . Escape Stasis . | . . . Rewire 2 | . . 2 Trap . | . . . Miscellaneous . | . . . Route ------- -11/Scrapyard -10/Materials (discovered 5 exits: *Mat x3 / [*Min x2]) -10/Mines History --------- Turn | Location | Event 26 | -11/Scrapyard | Discovered new exit (range 15) 82 | -11/Scrapyard | Entered Materials 290 | -10/Materials | Lost 3 parts (3w) 306 | -10/Materials | Build established: Mutant 338 | -10/Materials | Discovered new exit (range 7) 423 | -10/Materials | Discovered new exit (range 4) 597 | -10/Materials | Discovered new exit (range 17) 832 | -10/Materials | Discovered new exit (range 15) 1047 | -10/Materials | Core integrity fell below 50% 1149 | -10/Materials | Identified exit to Materials 1313 | -10/Materials | Entered Mines 1450 | -10/Mines | Assembled infested the area 1469 | -10/Mines | Core integrity fell below 20% 1476 | -10/Mines | Destroyed by as-39932 with Assembled Blade Last Messages --------------- Investigation squad. 01228_ G-34 Mercenary destroyed. 01230_ System corrupted: Energy discharge (-35). 01230_ Lgt. Treads destroyed. 01233_ G-34 Mercenary destroyed. 01242_ Acquired Sml. Laser. 01246_ Acquired 43 matter. LOCATION=UNKNOWN GOAL=ESCAPE 01400_ K-01 Serf collects debris. 01427_ System corrupted: Energy discharge (-31). 01447_ Attempting to rewire R-06 Scavenger. 01447_ R-06 Scavenger is broken beyond repair. 01448_ Attempting to rewire R-06 Scavenger. 01448_ R-06 Scavenger is broken beyond repair. 01450_ ALERT: Infestation in the mines, dispatching Demolisher response squad. 01464_ as-94534 destroyed. 01470_ as-57893 destroyed. 01470_ Switching to secondary target: as-25657. Map ----- +----------------------------------------------------+ | ??# ##???## ##??????? | | #### ####???## #??????? | | ##??????# #??????? | | ##??????# #??????? | | ### ##### ######## #??????? | | ??# #????## ## ## ##?????? | | ??# ??????## ##????? | | ?? ????????# ##???? | | ???????????# ###?? | | ??????????# ## #?? | | ?????????# ###### #?? | | ?????????# ##????# ##?? | | ?????????# ###????## ##??? | | ?????????# ##??????# ##??? | | ?????????## ##???##### #??? | | ??????????## ####????# #??? | | ???????????# ##????????# ## ##??? | | ???????????# ?????????## ##########???? | | ???????????# ????????## = ###?????????? | | ???????????# ????????# ##????????? | | ?????????????????????# ##???????? | | ?????????????????????# !r! #???????? | | ?????????????????????# #???????? | | ?????????????????????## ##???????? | | ??????????????????????# #????????? | | ??????????????????????## @] #????????? | | ???????????????????????##aa #????????? | | ????????????????????????# a #????????? | | ????????????????????????# ####????????? | | ????????????????????????# #???????????? | | ????????????????????????# #???????????? | | ????????????????????????aa#???????????? | | ????????????????????????#dd???????????? | | ????????????????????????###???????????? | | ??????????????????????????????????????? | | ??????????????????????????????????????? | | ??????????????????????????????????????? | | ??????????????????????????????????????? | | ??????????????????????????????????????? | | ??????????????????????????????????????? | | ??????????????????????????????????????? | | ??????????????????????????????????????? | | ??????????????????????????????????????? | | ??????????????????????????????????????? | | ??????????????????????????????????????? | | ??????????????????????????????????????? | | ??????????????????????????????????????? | | ??????????????????????????????????????? | | ??????????????????????????????????????? | | ??????????????????????????????????????? | +----------------------------------------------------+ Best States ------------- Heat Dissipation 25 Energy Generation 10 Energy Capacity 250 Matter Stores 300 Matter Capacity 300 Sight Range 16 Terrain Scan Range 16 Terrain Scan Density 10 Evasion (%) 40 Recoil Reduction 2 Item Schematics ----------------- None Robot Schematics ------------------ None Fabricated ------------ Nothing Alien Tech Used ----------------- None Achievements -------------- Fist Fight Challenges ------------ None Game ------ Seed FusionLayeredPenetrator Manual? 0 Play Time 00:11:21 Cumulative 69.7 hours Start 2019.12.11 @ 14:20:04 End 2019.12.11 @ 14:30:40 Sessions 1 Manual Loads 0 Difficulty Rogue Special Mode None Game No. 59 Rogue 59 Adventurer 0 Explorer 0 Win Type - Total 0 Types 0/0/0/0/0/0/0 Lore% 41 Gallery% 49 Achievement% 33 Wizard Run 0 Options --------- ASCII 0 Keyboard 0 Movement Numpad Keybinds 0 Fullscreen 1 Font 18/SmallcapsGlow Map View 76x50 Tactical HUD 1 Map Filters NONE Filters NONE Steam 1 RUN: 11b84e9d-147a-4db0-9fa7-6323162886c8